[Event "*** Titled Tuesday Blitz"]
[Site "Chess.com"]
[Date "2021.04.20"]
[Round "4"]
[White "pifion"]
[Black "RD4ever"]
[Result "0-1"]
[WhiteElo "2550"]
[BlackElo "2862"]
[TimeControl "180+1"]
[EndTime "10:37:50 PDT"]
[Termination "RD4ever won by checkmate"]

1. d4 {[%clk 0:03:00.9]} 1... Nf6 {[%clk 0:02:58.9]} 2. c4 {[%clk 0:03:00.8]}
2... c5 {[%clk 0:02:54.2]} 3. d5 {[%clk 0:03:00.2]} 3... g6 {[%clk 0:02:52.3]}
4. Nc3 {[%clk 0:02:59.5]} 4... Bg7 {[%clk 0:02:52.7]} 5. g3 {[%clk 0:02:59.8]}
5... O-O {[%clk 0:02:39.6]} 6. Bg2 {[%clk 0:02:59.7]} 6... d6 {[%clk 0:02:38.9]}
7. Nf3 {[%clk 0:02:59.6]} 7... e6 {[%clk 0:02:36.8]} 8. O-O {[%clk 0:02:58.7]}
8... exd5 {[%clk 0:02:37.2]} 9. cxd5 {[%clk 0:02:59.5]} 9... Re8 {[%clk
0:02:35.7]} 10. Nd2 {[%clk 0:02:59.4]} 10... Nbd7 {[%clk 0:02:32.5]} 11. a4
{[%clk 0:02:58.2]} 11... a6 {[%clk 0:02:26.6]} 12. h3 {[%clk 0:02:57.7]} 12...
Rb8 {[%clk 0:02:24.2]} 13. Nc4 {[%clk 0:02:57.5]} 13... Ne5 {[%clk 0:02:20.1]}
14. Na3 {[%clk 0:02:57]} 14... Nh5 {[%clk 0:02:17.3]} 15. e4 {[%clk 0:02:53.7]}
15... Bd7 {[%clk 0:02:15.4]} 16. a5 {[%clk 0:02:51.2]} 16... b5 {[%clk
0:02:10.4]} 17. axb6 {[%clk 0:02:50.6]} 17... Bb5 {[%clk 0:02:10.3]} 18. Naxb5
{[%clk 0:02:48.8]} 18... axb5 {[%clk 0:02:11.2]} 19. Nxb5 {[%clk 0:02:48.8]}
19... Qxb6 {[%clk 0:02:07.5]} 20. Na3 {[%clk 0:02:31.2]} 20... Qb3 {[%clk
0:02:03]} 21. g4 {[%clk 0:02:27.8]} 21... Nf6 {[%clk 0:01:55.5]} 22. Qxb3 {[%clk
0:01:33.7]} 22... Rxb3 {[%clk 0:01:56.4]} 23. Rd1 {[%clk 0:01:33.5]} 23... h5
{[%clk 0:01:16.7]} 24. g5 {[%clk 0:01:31.5]} 24... Nfd7 {[%clk 0:01:16.5]} 25.
f4 {[%clk 0:01:28.7]} 25... Nf3+ {[%clk 0:01:14.8]} 26. Kf2 {[%clk 0:01:13.1]}
26... Bd4+ {[%clk 0:01:08.4]} 27. Rxd4 {[%clk 0:01:12.6]} 27... Nxd4 {[%clk
0:01:07.6]} 28. Nc4 {[%clk 0:01:12.6]} 28... Reb8 {[%clk 0:00:25.3]} 29. Ra7
{[%clk 0:01:00.3]} 29... Nb6 {[%clk 0:00:20.6]} 30. Nxd6 {[%clk 0:00:59.5]}
30... Rd3 {[%clk 0:00:20.8]} 31. Nxf7 {[%clk 0:00:52.5]} 31... Rd1 {[%clk
0:00:16.4]} 32. Nh6+ {[%clk 0:00:49.4]} 32... Kh8 {[%clk 0:00:16.6]} 33. Be3
{[%clk 0:00:47.3]} 33... Nc4 {[%clk 0:00:16.5]} 34. Bxd4+ {[%clk 0:00:30.9]}
34... Rxd4 {[%clk 0:00:17.4]} 35. Kg3 {[%clk 0:00:19.4]} 35... Rxb2 {[%clk
0:00:15.2]} 36. f5 {[%clk 0:00:18.6]} 36... gxf5 {[%clk 0:00:13.4]} 37. Nxf5
{[%clk 0:00:18.3]} 37... Rd3+ {[%clk 0:00:13.2]} 38. Kf4 {[%clk 0:00:17.9]}
38... Rf2+ {[%clk 0:00:11.1]} 39. Bf3 {[%clk 0:00:15.7]} 39... Rfxf3# {[%clk
0:00:11.2]} 0-1

[Event "*** Titled Tuesday Blitz"]
[Site "Chess.com"]
[Date "2021.04.20"]
[Round "4"]
[White "Koalaskakistis"]
[Black "Jumbo"]
[Result "1-0"]
[WhiteElo "2554"]
[BlackElo "2793"]
[TimeControl "180+1"]
[EndTime "10:37:50 PDT"]
[Termination "Koalaskakistis won by resignation"]

1. Nf3 {[%clk 0:03:00.9]} 1... d5 {[%clk 0:02:59.3]} 2. g3 {[%clk 0:03:01.8]}
2... g6 {[%clk 0:02:58.7]} 3. Bg2 {[%clk 0:03:02.1]} 3... Bg7 {[%clk 0:02:59.3]}
4. O-O {[%clk 0:03:03]} 4... e5 {[%clk 0:02:59.7]} 5. d3 {[%clk 0:03:03.5]} 5...
Ne7 {[%clk 0:02:59.9]} 6. e4 {[%clk 0:03:03.5]} 6... O-O {[%clk 0:02:56.7]} 7.
c3 {[%clk 0:03:03.1]} 7... Nbc6 {[%clk 0:02:53.8]} 8. b4 {[%clk 0:03:01.1]} 8...
a6 {[%clk 0:02:53.2]} 9. a4 {[%clk 0:02:58.2]} 9... d4 {[%clk 0:02:47.9]} 10.
cxd4 {[%clk 0:02:55.1]} 10... Nxd4 {[%clk 0:02:47.5]} 11. Nxd4 {[%clk
0:02:25.2]} 11... Qxd4 {[%clk 0:02:48.4]} 12. Qb3 {[%clk 0:02:23.4]} 12... Rd8
{[%clk 0:02:39.8]} 13. Be3 {[%clk 0:01:47.6]} 13... Qxd3 {[%clk 0:02:37.3]} 14.
Nc3 {[%clk 0:01:45]} 14... Be6 {[%clk 0:02:34]} 15. Qb2 {[%clk 0:01:44.7]} 15...
Nc6 {[%clk 0:02:27.6]} 16. Rfd1 {[%clk 0:01:43.1]} 16... Qc4 {[%clk 0:02:24.9]}
17. Nd5 {[%clk 0:01:39.5]} 17... Bxd5 {[%clk 0:02:07.5]} 18. exd5 {[%clk
0:01:40.4]} 18... Qxb4 {[%clk 0:02:07.9]} 19. Rab1 {[%clk 0:01:37.3]} 19... Qxb2
{[%clk 0:02:02.4]} 20. Rxb2 {[%clk 0:01:38.2]} 20... Na5 {[%clk 0:02:02.7]} 21.
Rc1 {[%clk 0:01:30.3]} 21... e4 {[%clk 0:01:49.9]} 22. Rbb1 {[%clk 0:01:10.1]}
22... Rxd5 {[%clk 0:01:43.3]} 23. Rxc7 {[%clk 0:01:10.2]} 23... f5 {[%clk
0:01:28.7]} 24. Bb6 {[%clk 0:01:08.4]} 24... Be5 {[%clk 0:01:24.3]} 25. Bxa5
{[%clk 0:00:28.4]} 25... Rxa5 {[%clk 0:01:22.6]} 26. Rcxb7 {[%clk 0:00:28.7]}
26... Rxa4 {[%clk 0:01:23]} 27. Bf1 {[%clk 0:00:27.9]} 27... Ra1 {[%clk
0:01:05.9]} 28. R1b3 {[%clk 0:00:19]} 28... Rc8 {[%clk 0:00:51]} 29. Kg2 {[%clk
0:00:18.5]} 29... Ra2 {[%clk 0:00:50.1]} 30. Rd7 {[%clk 0:00:13.9]} 30... Rcc2
{[%clk 0:00:22.5]} 31. Rbb7 {[%clk 0:00:13.9]} 31... Rxf2+ {[%clk 0:00:22.8]}
32. Kg1 {[%clk 0:00:13.7]} 32... Rfd2 {[%clk 0:00:23.2]} 33. Bc4+ {[%clk
0:00:12.1]} 33... Kh8 {[%clk 0:00:19.3]} 34. Bxa2 {[%clk 0:00:13]} 1-0

[Event "*** Titled Tuesday Blitz"]
[Site "Chess.com"]
[Date "2021.04.20"]
[Round "4"]
[White "VMikhalevski"]
[Black "KonstantinB_1983"]
[Result "1-0"]
[WhiteElo "2706"]
[BlackElo "2502"]
[TimeControl "180+1"]
[EndTime "10:37:52 PDT"]
[Termination "VMikhalevski won by resignation"]

1. d4 {[%clk 0:03:00.9]} 1... d5 {[%clk 0:02:57.9]} 2. c4 {[%clk 0:03:00.6]}
2... c6 {[%clk 0:02:58.3]} 3. cxd5 {[%clk 0:03:01]} 3... cxd5 {[%clk 0:02:57.7]}
4. Bg5 {[%clk 0:03:01.7]} 4... h6 {[%clk 0:02:55]} 5. Bh4 {[%clk 0:03:01.1]}
5... Qb6 {[%clk 0:02:46.4]} 6. Nc3 {[%clk 0:03:01.1]} 6... e6 {[%clk 0:02:43.1]}
7. Qd2 {[%clk 0:02:58.1]} 7... Nc6 {[%clk 0:02:42.2]} 8. e3 {[%clk 0:02:57.2]}
8... Be7 {[%clk 0:02:41.6]} 9. Nf3 {[%clk 0:02:53.5]} 9... Bxh4 {[%clk
0:02:40.7]} 10. Nxh4 {[%clk 0:02:52.9]} 10... Nf6 {[%clk 0:02:41.1]} 11. Bd3
{[%clk 0:02:51.5]} 11... O-O {[%clk 0:02:38.9]} 12. O-O {[%clk 0:02:50.9]} 12...
e5 {[%clk 0:02:38.3]} 13. dxe5 {[%clk 0:02:48.6]} 13... Nxe5 {[%clk 0:02:37.7]}
14. Be2 {[%clk 0:02:48.3]} 14... Be6 {[%clk 0:02:36]} 15. b3 {[%clk 0:02:43.1]}
15... Rfd8 {[%clk 0:02:32.5]} 16. Rfd1 {[%clk 0:02:42.3]} 16... Qd6 {[%clk
0:02:21.4]} 17. Nb5 {[%clk 0:02:34.5]} 17... Qd7 {[%clk 0:02:16.4]} 18. Nd4
{[%clk 0:02:32.5]} 18... Rac8 {[%clk 0:02:12]} 19. Rac1 {[%clk 0:02:06.9]} 19...
Qd6 {[%clk 0:02:02.7]} 20. Nhf5 {[%clk 0:02:01]} 20... Bxf5 {[%clk 0:01:59.2]}
21. Nxf5 {[%clk 0:02:00.2]} 21... Qd7 {[%clk 0:01:57.9]} 22. Nd4 {[%clk
0:01:55.9]} 22... Qd6 {[%clk 0:01:52.8]} 23. Rxc8 {[%clk 0:01:50.1]} 23... Rxc8
{[%clk 0:01:52.1]} 24. Rc1 {[%clk 0:01:50.8]} 24... Qd7 {[%clk 0:01:42.9]} 25.
h3 {[%clk 0:01:45.8]} 25... Ne4 {[%clk 0:01:41.9]} 26. Qe1 {[%clk 0:01:42.8]}
26... a6 {[%clk 0:01:37.2]} 27. f3 {[%clk 0:01:35]} 27... Nf6 {[%clk 0:01:34.8]}
28. Rc3 {[%clk 0:01:28]} 28... Ne8 {[%clk 0:01:23.5]} 29. Qc1 {[%clk 0:01:26.2]}
29... Nd6 {[%clk 0:01:19.2]} 30. Rc5 {[%clk 0:01:08.3]} 30... Qe8 {[%clk
0:01:14]} 31. Kf2 {[%clk 0:01:04.6]} 31... Qd7 {[%clk 0:01:04.4]} 32. Qa3 {[%clk
0:01:00.2]} 32... Rxc5 {[%clk 0:00:57.4]} 33. Qxc5 {[%clk 0:00:59.3]} 33... Nc8
{[%clk 0:00:56.3]} 34. f4 {[%clk 0:00:55.8]} 34... Nc6 {[%clk 0:00:44.6]} 35.
Nxc6 {[%clk 0:00:53.9]} 35... bxc6 {[%clk 0:00:44]} 36. Bxa6 {[%clk 0:00:52.9]}
36... Nd6 {[%clk 0:00:44.3]} 37. Bd3 {[%clk 0:00:52.2]} 37... Nb7 {[%clk
0:00:40.6]} 38. Qb6 {[%clk 0:00:49.1]} 38... c5 {[%clk 0:00:34.5]} 39. Ba6
{[%clk 0:00:43.6]} 39... Nd6 {[%clk 0:00:33]} 40. Bd3 {[%clk 0:00:41.1]} 40...
c4 {[%clk 0:00:31.9]} 41. Qb8+ {[%clk 0:00:39.5]} 41... Ne8 {[%clk 0:00:27.8]}
42. bxc4 {[%clk 0:00:38.1]} 42... dxc4 {[%clk 0:00:26.1]} 43. Bxc4 {[%clk
0:00:38.1]} 43... Qd2+ {[%clk 0:00:22.2]} 44. Kf3 {[%clk 0:00:37.2]} 44... Qd1+
{[%clk 0:00:21.2]} 45. Be2 {[%clk 0:00:37.1]} 45... Qd5+ {[%clk 0:00:20.6]} 46.
e4 {[%clk 0:00:35.3]} 46... Qe6 {[%clk 0:00:17.3]} 47. Bb5 {[%clk 0:00:33.4]}
1-0

[Event "*** Titled Tuesday Blitz"]
[Site "Chess.com"]
[Date "2021.04.20"]
[Round "4"]
[White "ehrenfeld"]
[Black "Grandelicious"]
[Result "0-1"]
[WhiteElo "2541"]
[BlackElo "2820"]
[TimeControl "180+1"]
[EndTime "10:37:53 PDT"]
[Termination "Grandelicious won by resignation"]

1. e4 {[%clk 0:03:00.9]} 1... c5 {[%clk 0:02:57.5]} 2. Nf3 {[%clk 0:03:00.1]}
2... e6 {[%clk 0:02:58.1]} 3. d3 {[%clk 0:02:58.6]} 3... Nc6 {[%clk 0:02:56.6]}
4. g3 {[%clk 0:02:58.6]} 4... d6 {[%clk 0:02:57.2]} 5. Bg2 {[%clk 0:02:58.6]}
5... Be7 {[%clk 0:02:57.3]} 6. O-O {[%clk 0:02:58.7]} 6... Nf6 {[%clk
0:02:57.8]} 7. c3 {[%clk 0:02:56.3]} 7... O-O {[%clk 0:02:57.1]} 8. Re1 {[%clk
0:02:55.9]} 8... Ne5 {[%clk 0:02:56.5]} 9. d4 {[%clk 0:02:52.8]} 9... Nxf3+
{[%clk 0:02:54.6]} 10. Qxf3 {[%clk 0:02:50.5]} 10... Qc7 {[%clk 0:02:33.7]} 11.
dxc5 {[%clk 0:02:41.1]} 11... Qxc5 {[%clk 0:02:32.2]} 12. Nd2 {[%clk 0:02:37.8]}
12... Rb8 {[%clk 0:02:17.7]} 13. Nb3 {[%clk 0:02:37.1]} 13... Qc7 {[%clk
0:02:17.3]} 14. Nd4 {[%clk 0:02:35.7]} 14... a6 {[%clk 0:02:12.1]} 15. a4 {[%clk
0:02:33.5]} 15... Nd7 {[%clk 0:02:05.9]} 16. Qe2 {[%clk 0:02:32.4]} 16... b6
{[%clk 0:02:01.1]} 17. h4 {[%clk 0:02:26.2]} 17... Bb7 {[%clk 0:01:58.9]} 18.
Bg5 {[%clk 0:02:26.1]} 18... Rbe8 {[%clk 0:01:49.8]} 19. Bxe7 {[%clk 0:02:24.4]}
19... Rxe7 {[%clk 0:01:50.7]} 20. Red1 {[%clk 0:02:08.1]} 20... Ne5 {[%clk
0:01:43.1]} 21. Nc2 {[%clk 0:02:00.9]} 21... f5 {[%clk 0:01:36.2]} 22. f4 {[%clk
0:01:28.2]} 22... Ng4 {[%clk 0:01:20.9]} 23. Bf3 {[%clk 0:01:07.6]} 23... Nf6
{[%clk 0:01:09.1]} 24. exf5 {[%clk 0:00:56.7]} 24... exf5 {[%clk 0:01:10]} 25.
Qg2 {[%clk 0:00:54.2]} 25... Bxf3 {[%clk 0:01:03.6]} 26. Qxf3 {[%clk 0:00:53.9]}
26... Qc5+ {[%clk 0:01:03.7]} 27. Nd4 {[%clk 0:00:51.5]} 27... Rfe8 {[%clk
0:01:03.9]} 28. Qc6 {[%clk 0:00:42.6]} 28... g6 {[%clk 0:00:59.8]} 29. b4 {[%clk
0:00:36.5]} 29... Qxc6 {[%clk 0:00:57.3]} 30. Nxc6 {[%clk 0:00:36.4]} 30... Re3
{[%clk 0:00:58.2]} 31. Rxd6 {[%clk 0:00:34.2]} 31... Ng4 {[%clk 0:00:42.9]} 32.
Ne5 {[%clk 0:00:30.4]} 32... Rxg3+ {[%clk 0:00:42.5]} 33. Kf1 {[%clk 0:00:29.7]}
33... Nxe5 {[%clk 0:00:30.5]} 34. fxe5 {[%clk 0:00:29.7]} 34... Rxe5 {[%clk
0:00:31.4]} 35. Re1 {[%clk 0:00:26.7]} 35... Rxe1+ {[%clk 0:00:17.1]} 36. Kxe1
{[%clk 0:00:26.6]} 36... Rxc3 {[%clk 0:00:16.6]} 37. Rxb6 {[%clk 0:00:26.2]}
37... Rc4 {[%clk 0:00:17.2]} 38. a5 {[%clk 0:00:25.5]} 38... Rxh4 {[%clk
0:00:16.1]} 39. b5 {[%clk 0:00:24.2]} 39... axb5 {[%clk 0:00:16.3]} 40. a6
{[%clk 0:00:22.6]} 40... Ra4 {[%clk 0:00:16.2]} 0-1

[Event "*** Titled Tuesday Blitz"]
[Site "Chess.com"]
[Date "2021.04.20"]
[Round "4"]
[White "AthanasiusLefebvre"]
[Black "McCarthyStone"]
[Result "0-1"]
[WhiteElo "2029"]
[BlackElo "2371"]
[TimeControl "180+1"]
[EndTime "10:37:53 PDT"]
[Termination "McCarthyStone won by resignation"]

1. Nf3 {[%clk 0:03:00.9]} 1... d5 {[%clk 0:02:57.2]} 2. g3 {[%clk 0:02:58.9]}
2... Nc6 {[%clk 0:02:57.1]} 3. d3 {[%clk 0:02:59.3]} 3... e5 {[%clk 0:02:57.3]}
4. Bg2 {[%clk 0:02:59.4]} 4... f5 {[%clk 0:02:57.9]} 5. O-O {[%clk 0:02:57]}
5... Nf6 {[%clk 0:02:57.8]} 6. c4 {[%clk 0:02:56.2]} 6... dxc4 {[%clk
0:02:54.4]} 7. dxc4 {[%clk 0:02:52.3]} 7... Qxd1 {[%clk 0:02:52]} 8. Rxd1 {[%clk
0:02:46]} 8... Bc5 {[%clk 0:02:52.9]} 9. Nc3 {[%clk 0:02:44]} 9... e4 {[%clk
0:02:43]} 10. Ng5 {[%clk 0:02:38.2]} 10... O-O {[%clk 0:02:33.2]} 11. Bf4 {[%clk
0:02:35.5]} 11... Ne8 {[%clk 0:02:05.1]} 12. Nd5 {[%clk 0:02:26.4]} 12... Bd6
{[%clk 0:01:54.2]} 13. Bxd6 {[%clk 0:02:08.9]} 13... cxd6 {[%clk 0:01:55.1]} 14.
f3 {[%clk 0:02:01]} 14... h6 {[%clk 0:01:54.5]} 15. Nh3 {[%clk 0:02:00.5]} 15...
exf3 {[%clk 0:01:53.4]} 16. exf3 {[%clk 0:01:55.3]} 16... Be6 {[%clk 0:01:52.7]}
17. Nhf4 {[%clk 0:01:54.5]} 17... Bf7 {[%clk 0:01:53.2]} 18. Re1 {[%clk
0:01:36.4]} 18... g5 {[%clk 0:01:52.5]} 19. Ne6 {[%clk 0:01:35.6]} 19... Bxe6
{[%clk 0:01:50.2]} 20. Rxe6 {[%clk 0:01:34.8]} 20... Kg7 {[%clk 0:01:50.6]} 21.
Rae1 {[%clk 0:01:32.2]} 21... Rd8 {[%clk 0:01:38.8]} 22. f4 {[%clk 0:01:32]}
22... Nf6 {[%clk 0:01:31.3]} 23. Nxf6 {[%clk 0:01:27.6]} 23... Rxf6 {[%clk
0:01:32.2]} 24. Bxc6 {[%clk 0:01:25.3]} 24... bxc6 {[%clk 0:01:31.6]} 25. Re7+
{[%clk 0:01:24.9]} 25... Rf7 {[%clk 0:01:31.7]} 26. fxg5 {[%clk 0:01:24.7]}
26... hxg5 {[%clk 0:01:30.5]} 27. Kf2 {[%clk 0:01:24]} 27... d5 {[%clk
0:01:29.6]} 28. cxd5 {[%clk 0:01:22.1]} 28... cxd5 {[%clk 0:01:30.5]} 29. h4
{[%clk 0:01:11]} 29... gxh4 {[%clk 0:01:25.4]} 30. gxh4 {[%clk 0:01:09.9]} 30...
d4 {[%clk 0:01:25.9]} 31. Rxf7+ {[%clk 0:01:00]} 31... Kxf7 {[%clk 0:01:24.3]}
32. Ke2 {[%clk 0:00:59.7]} 32... Rh8 {[%clk 0:00:59.7]} 33. Rh1 {[%clk
0:00:57.4]} 33... Ke6 {[%clk 0:00:57.7]} 34. Kd3 {[%clk 0:00:57]} 34... Ke5
{[%clk 0:00:53.3]} 35. h5 {[%clk 0:00:52.5]} 35... f4 {[%clk 0:00:46.3]} 36. h6
{[%clk 0:00:48.9]} 36... f3 {[%clk 0:00:46.6]} 37. h7 {[%clk 0:00:35.8]} 37...
Kf4 {[%clk 0:00:36.7]} 38. Kxd4 {[%clk 0:00:35.4]} 38... Kg3 {[%clk 0:00:36.5]}
39. Ke5 {[%clk 0:00:32]} 39... Kg2 {[%clk 0:00:35.8]} 40. Rh6 {[%clk 0:00:27.1]}
40... f2 {[%clk 0:00:36.1]} 41. Rg6+ {[%clk 0:00:25.6]} 41... Kf3 {[%clk
0:00:31.9]} 42. Rf6+ {[%clk 0:00:25.1]} 42... Ke2 {[%clk 0:00:32.3]} 0-1

[Event "*** Titled Tuesday Blitz"]
[Site "Chess.com"]
[Date "2021.04.20"]
[Round "4"]
[White "FMJoseHerrera"]
[Black "IljaJoke"]
[Result "0-1"]
[WhiteElo "2631"]
[BlackElo "2498"]
[TimeControl "180+1"]
[EndTime "10:37:59 PDT"]
[Termination "IljaJoke won by resignation"]

1. Nf3 {[%clk 0:03:00.9]} 1... d5 {[%clk 0:02:59.8]} 2. g3 {[%clk 0:03:00.1]}
2... g6 {[%clk 0:02:58.6]} 3. Bg2 {[%clk 0:02:59.8]} 3... Bg7 {[%clk 0:02:59.1]}
4. d3 {[%clk 0:02:59.9]} 4... Nf6 {[%clk 0:02:56.8]} 5. Nc3 {[%clk 0:02:59.8]}
5... d4 {[%clk 0:02:56.1]} 6. Nb1 {[%clk 0:02:59]} 6... O-O {[%clk 0:02:55.8]}
7. h4 {[%clk 0:02:58.6]} 7... Nc6 {[%clk 0:02:54.9]} 8. h5 {[%clk 0:02:58.8]}
8... Nxh5 {[%clk 0:02:54.1]} 9. Bg5 {[%clk 0:02:58.7]} 9... f6 {[%clk
0:02:46.6]} 10. Bd2 {[%clk 0:02:57.4]} 10... e5 {[%clk 0:02:46.3]} 11. Qc1
{[%clk 0:02:55.6]} 11... Be6 {[%clk 0:02:45.2]} 12. Bh6 {[%clk 0:02:53.3]} 12...
Qd7 {[%clk 0:02:45.5]} 13. Bxg7 {[%clk 0:02:52.6]} 13... Qxg7 {[%clk 0:02:45.7]}
14. Nbd2 {[%clk 0:02:52.5]} 14... f5 {[%clk 0:02:40.2]} 15. Ng5 {[%clk
0:02:50.4]} 15... Qe7 {[%clk 0:02:26.6]} 16. Nxe6 {[%clk 0:02:49.4]} 16... Qxe6
{[%clk 0:02:27.5]} 17. Bf3 {[%clk 0:02:33]} 17... Nf6 {[%clk 0:02:24.8]} 18. Nb3
{[%clk 0:02:30.2]} 18... e4 {[%clk 0:02:19.4]} 19. Bg2 {[%clk 0:02:29]} 19...
Rae8 {[%clk 0:02:12.1]} 20. Qd2 {[%clk 0:02:23.3]} 20... e3 {[%clk 0:01:58.7]}
21. fxe3 {[%clk 0:02:21.8]} 21... Qxe3 {[%clk 0:01:58.8]} 22. Qxe3 {[%clk
0:02:19.8]} 22... Rxe3 {[%clk 0:01:59.7]} 23. Bxc6 {[%clk 0:02:19.5]} 23... bxc6
{[%clk 0:01:59.4]} 24. Nxd4 {[%clk 0:02:19.8]} 24... Rxg3 {[%clk 0:01:56.9]} 25.
Kf2 {[%clk 0:02:18.5]} 25... f4 {[%clk 0:01:49.8]} 26. Rag1 {[%clk 0:02:08.3]}
26... c5 {[%clk 0:01:04.7]} 27. Ne6 {[%clk 0:02:01.1]} 27... Ng4+ {[%clk
0:01:04.9]} 28. Ke1 {[%clk 0:02:00.6]} 28... Rf6 {[%clk 0:01:04.1]} 29. Nxc5
{[%clk 0:01:49.4]} 29... Rxg1+ {[%clk 0:01:01.5]} 30. Rxg1 {[%clk 0:01:49.3]}
30... h5 {[%clk 0:01:01.9]} 31. Ne4 {[%clk 0:01:48.6]} 31... Rf5 {[%clk
0:00:59]} 32. c4 {[%clk 0:01:48.1]} 32... Kg7 {[%clk 0:00:58.2]} 33. b4 {[%clk
0:01:44.9]} 33... Ne3 {[%clk 0:00:53.8]} 34. Kf2 {[%clk 0:01:43.1]} 34... Kh6
{[%clk 0:00:49.2]} 35. a4 {[%clk 0:01:40.2]} 35... g5 {[%clk 0:00:49.2]} 36. c5
{[%clk 0:01:30.8]} 36... g4 {[%clk 0:00:48.1]} 37. b5 {[%clk 0:01:27.2]} 37...
Nc2 {[%clk 0:00:32.3]} 38. Rc1 {[%clk 0:01:16.9]} 38... g3+ {[%clk 0:00:27.7]}
39. Kg2 {[%clk 0:01:15]} 39... Nd4 {[%clk 0:00:27.4]} 40. e3 {[%clk 0:01:06.3]}
40... fxe3 {[%clk 0:00:25.8]} 41. Nxg3 {[%clk 0:01:06.5]} 41... Rg5 {[%clk
0:00:22.5]} 42. Kh3 {[%clk 0:00:57.6]} 42... Rxg3+ {[%clk 0:00:19.1]} 43. Kxg3
{[%clk 0:00:55.6]} 43... Ne2+ {[%clk 0:00:19.7]} 44. Kf3 {[%clk 0:00:56.5]}
44... Nxc1 {[%clk 0:00:20.3]} 45. Kxe3 {[%clk 0:00:57.4]} 45... Nb3 {[%clk
0:00:13]} 46. d4 {[%clk 0:00:57.7]} 46... Kg5 {[%clk 0:00:09.9]} 47. c6 {[%clk
0:00:55.5]} 47... Kf5 {[%clk 0:00:08.4]} 48. Kd3 {[%clk 0:00:55.8]} 48... h4
{[%clk 0:00:08.3]} 49. Kc4 {[%clk 0:00:55.5]} 49... h3 {[%clk 0:00:08.7]} 50.
Kxb3 {[%clk 0:00:53.4]} 50... h2 {[%clk 0:00:09.1]} 51. a5 {[%clk 0:00:52.9]}
51... h1=Q {[%clk 0:00:09.2]} 52. b6 {[%clk 0:00:53.8]} 52... Qd5+ {[%clk
0:00:09.3]} 53. Kb4 {[%clk 0:00:53.6]} 53... cxb6 {[%clk 0:00:09.6]} 54. c7
{[%clk 0:00:53.5]} 54... Qxd4+ {[%clk 0:00:08.7]} 55. Kb5 {[%clk 0:00:53.5]}
55... Qc5+ {[%clk 0:00:08.9]} 56. Ka6 {[%clk 0:00:54.4]} 56... Qxc7 {[%clk
0:00:08.7]} 0-1

[Event "*** Titled Tuesday Blitz"]
[Site "Chess.com"]
[Date "2021.04.20"]
[Round "4"]
[White "IANOV0007"]
[Black "picturesquecheck"]
[Result "1-0"]
[WhiteElo "2460"]
[BlackElo "2298"]
[TimeControl "180+1"]
[EndTime "10:38:00 PDT"]
[Termination "IANOV0007 won by checkmate"]

1. Nf3 {[%clk 0:03:00.9]} 1... c5 {[%clk 0:02:57.9]} 2. g3 {[%clk 0:03:00.8]}
2... Nc6 {[%clk 0:02:57.9]} 3. Bg2 {[%clk 0:03:00.8]} 3... g6 {[%clk 0:02:58.5]}
4. O-O {[%clk 0:03:00.4]} 4... Bg7 {[%clk 0:02:58.7]} 5. c4 {[%clk 0:03:00.4]}
5... Nf6 {[%clk 0:02:58.8]} 6. Nc3 {[%clk 0:03:00.4]} 6... O-O {[%clk
0:02:58.8]} 7. d4 {[%clk 0:03:00.5]} 7... cxd4 {[%clk 0:02:56.9]} 8. Nxd4 {[%clk
0:02:59.6]} 8... Qb6 {[%clk 0:02:57.4]} 9. Nb3 {[%clk 0:02:58]} 9... d6 {[%clk
0:02:57.2]} 10. Be3 {[%clk 0:02:56.9]} 10... Qc7 {[%clk 0:02:56.1]} 11. c5
{[%clk 0:02:55.2]} 11... dxc5 {[%clk 0:02:46]} 12. Nxc5 {[%clk 0:02:54.2]} 12...
Rd8 {[%clk 0:02:44.6]} 13. Qc1 {[%clk 0:02:52.3]} 13... Bf5 {[%clk 0:02:31.7]}
14. Rd1 {[%clk 0:02:47.5]} 14... Rac8 {[%clk 0:02:25.8]} 15. Rxd8+ {[%clk
0:02:43.8]} 15... Rxd8 {[%clk 0:02:25.4]} 16. a3 {[%clk 0:02:42.2]} 16... b6
{[%clk 0:02:08.9]} 17. Na6 {[%clk 0:02:34.8]} 17... Qc8 {[%clk 0:02:06.5]} 18.
Nb4 {[%clk 0:02:30]} 18... Ne5 {[%clk 0:02:00.8]} 19. Ncd5 {[%clk 0:02:17.9]}
19... Nxd5 {[%clk 0:01:51.7]} 20. Nxd5 {[%clk 0:02:09]} 20... Kf8 {[%clk
0:01:46.3]} 21. Bg5 {[%clk 0:01:46.8]} 21... f6 {[%clk 0:01:41.3]} 22. Bf4
{[%clk 0:01:44.7]} 22... Nc4 {[%clk 0:01:35.3]} 23. b3 {[%clk 0:01:36.6]} 23...
Na5 {[%clk 0:01:32]} 24. b4 {[%clk 0:01:10.1]} 24... Nb3 {[%clk 0:01:28.1]} 25.
Qxc8 {[%clk 0:01:03.6]} 25... Rxc8 {[%clk 0:01:29]} 26. Re1 {[%clk 0:00:56.4]}
26... e6 {[%clk 0:01:23.7]} 27. Bd6+ {[%clk 0:00:50.6]} 27... Kf7 {[%clk
0:01:19.8]} 28. Ne7 {[%clk 0:00:50.1]} 28... Rd8 {[%clk 0:01:17.7]} 29. Nxf5
{[%clk 0:00:49.7]} 29... gxf5 {[%clk 0:01:17.4]} 30. Bc7 {[%clk 0:00:43.9]}
30... Rd7 {[%clk 0:01:15.9]} 31. Bb8 {[%clk 0:00:43]} 31... Nd4 {[%clk
0:01:10.3]} 32. Kf1 {[%clk 0:00:31.4]} 32... Nc2 {[%clk 0:01:07.9]} 33. Rc1
{[%clk 0:00:29.5]} 33... Nxa3 {[%clk 0:01:00.5]} 34. Bc6 {[%clk 0:00:28.9]}
34... Rd4 {[%clk 0:00:48.3]} 35. b5 {[%clk 0:00:24.8]} 35... Bh6 {[%clk
0:00:43.6]} 36. Ra1 {[%clk 0:00:22.9]} 36... Nc2 {[%clk 0:00:38.7]} 37. Rxa7+
{[%clk 0:00:21.6]} 37... Kg6 {[%clk 0:00:33.7]} 38. h4 {[%clk 0:00:21.3]} 38...
f4 {[%clk 0:00:31.8]} 39. g4 {[%clk 0:00:19.5]} 39... Rd1+ {[%clk 0:00:21.9]}
40. Kg2 {[%clk 0:00:18.4]} 40... Ne1+ {[%clk 0:00:21.9]} 41. Kh3 {[%clk
0:00:18.2]} 41... f5 {[%clk 0:00:17]} 42. g5 {[%clk 0:00:17.1]} 42... Bf8 {[%clk
0:00:16]} 43. Be8# {[%clk 0:00:11.8]} 1-0